Cogmind - Beta 14 @@@ ROGUE MODE // 2024.09.20 @ 09:06:18 Player: szymekc Result: Destroyed by A7-86G(R) with Subdweller Shrapnel Launcher Performance ------------- Evolutions (0) 0 Regions Visited (2) 400 Robots Destroyed (34) 170 Value Destroyed (840) 840 Prototype IDs (2) 40 Alien Tech Used (0) 0 Bonus (0) 0 TOTAL SCORE: 1450 Bonus ------- None Cogmind --------- Core Integrity 0/250 Matter 76/300 Energy 125/125 System Corruption 0% Temperature Cool (0) Movement Rolling (150) Ox4 Location -10/Subcaves Parts ------- > --- POWER (1) -------- Light Ion Engine > --- PROPULSION (2) --- Spiked Treads Subdweller Monowheel > --- UTILITY (2) ------ Huge Storage Unit Seismic Detector > --- WEAPON (2) ------- Subdweller Beam Cannon Makeshift Sword > --- INVENTORY (25) --- Light Ion Engine Subdweller Power Source Subdweller Power Source Light Treads Spiked Treads Cargo Legs Subdweller Monowheel Seismic Detector Light Armor Plating Light Armor Plating Scrap Shield Scrap Shield Scrap Shield Hacking Suite Subdweller Laser Subdweller Beam Cannon Subdweller Machine Gun Subdweller Shrapnel Launcher Scrap Shield Fragment (49) Scrap Shield Fragment (47) Scrap Shield Fragment (34) Peak State ------------ > --- POWER ------------ Light Ion Engine > --- PROPULSION ------- Spiked Treads Subdweller Monowheel > --- UTILITY ---------- Huge Storage Unit Seismic Detector > --- WEAPON ----------- Subdweller Beam Cannon Makeshift Sword > --- INVENTORY -------- Light Ion Engine Subdweller Power Source Subdweller Power Source Light Treads Spiked Treads Cargo Legs Subdweller Monowheel Seismic Detector Light Armor Plating Light Armor Plating Scrap Shield Scrap Shield Scrap Shield Hacking Suite Subdweller Laser Subdweller Beam Cannon Subdweller Machine Gun Subdweller Shrapnel Launcher Scrap Shield Fragment Scrap Shield Fragment Scrap Shield Fragment [Rating: 18] Favorites ----------- Power Light Ion Engine Engine Light Ion Engine Propulsion Light Treads Treads Light Treads Leg Aluminum Leg Wheel Subdweller Monowheel Utility Seismic Detector Device Seismic Detector Storage Huge Storage Unit Protection Light Armor Plating Weapon Subdweller Beam Cannon Energy Gun EM Pulse Gun Energy Cannon Subdweller Beam Cannon Ballistic Gun Assault Rifle Launcher Subdweller Shrapnel Launcher Special Weapon Mining Laser Impact Weapon Hammer Slashing Weapon Makeshift Sword Build | -11 -10 -10 ------- Run | Yrd Mat Sub Slots Evolved . | . . . Power . | . . . Propulsion . | . . . Utility . | . . . Weapon . | . . . Parts Attached 47 | 3 11 33 Power 3 | . 2 1 Engine 3 | . 2 1 Core . | . . . Reactor . | . . . Propulsion 7 | 2 1 4 Treads 6 | 2 1 3 Leg . | . . . Wheel 1 | . . 1 Hover . | . . . Flight . | . . . Utility 8 | 1 3 4 Device 5 | 1 2 2 Storage 1 | . 1 . Processor . | . . . Hackware . | . . . Protection 2 | . . 2 Artifact . | . . . Weapon 29 | . 5 24 Energy Gun 6 | . 3 3 Energy Cannon 12 | . . 12 Ballistic Gun 3 | . 1 2 Ballistic Cannon . | . . . Launcher 1 | . . 1 Special Weapon 1 | . 1 . Impact Weapon 2 | . . 2 Slashing Weapon 4 | . . 4 Piercing Weapon . | . . . Special Melee Weapon . | . . . Unidentified Prototypes . | . . . Parts Lost 4 | . . 4 Power 1 | . . 1 Propulsion 1 | . . 1 Utility . | . . . Weapon 2 | . . 2 Highest Loss Streak 2 | . . 2 To Critical Strikes . | . . . Average Slot Usage (%) 99 | . 99 99 Engine 13 | . 14 13 Treads 27 | . 27 27 Device 13 | . 13 13 Storage 14 | . 14 14 Energy Gun 6 | . 20 1 Energy Cannon 14 | . . 18 Ballistic Gun 1 | . 7 . Slashing Weapon 4 | . . 6 Peak Build Rating 18 | 7 8 18 Average Rating 12 | 6 7 14 On Entrance 7 | 6 7 8 Naked Turns . | . . . Heaviest Build 104 | 12 94 104 Greatest Support 40 | 40 40 40 Greatest Overweight (x) 5 | . 2 5 Average Overweight (x) 1 | . . 2 Largest Inventory Capacity 25 | 8 25 25 Average Capacity 22 | 8 17 25 Most Carried 25 | 7 16 25 Average Carried 20 | 4 10 24 Final Capacity 25 | 8 25 25 Final Carried 25 | 4 16 25 Class Distribution -------------------- 100% | Mutant Dominant Class ---------------- Mutant | -10/Materials Mutant | -10/Subcaves Resources | -11 -10 -10 ----------- Run | Yrd Mat Sub Matter Collected 889 | 282 184 423 Remotely . | . . . Salvage Created 1079 | 162 460 457 Parts 69 | 11 36 22 Haulers Intercepted 2 | . 2 . Recyclers Shooed 1 | 1 . . Parts Field Recycled . | . . . Retrieved Matter . | . . . Parts Self-Destructed 20 | . . 20 Prevented . | . . . Kills | -11 -10 -10 ------- Run | Yrd Mat Sub Combat Hostiles Destroyed 23 | . 12 11 Guns 10 | . 9 1 Cannons 7 | . . 7 AOE 5 | . 3 2 Classes Destroyed 10 | 2 6 2 Worker 1 | . 1 . Tunneler 3 | 3 . . Hauler 2 | . 2 . Recycler 1 | 1 . . Operator 1 | . 1 . Turret 1 | . . 1 Watcher 2 | . 2 . Swarmer 8 | . 6 2 Grunt 6 | . 6 . Subdweller 9 | . . 9 Best Kill Streak 5 | 2 5 2 Combat Bots Only 3 | . 3 2 Max Kills in Single Turn 4 | 1 4 1 Gunslinging . | . . . Exploded 1 | . 1 1 Melee . | . . . Uniques/NPCs Destroyed . | . . . Combat | -11 -10 -10 -------- Run | Yrd Mat Sub Hostile Shots Fired 113 | . 62 51 Missed 38 | . 19 19 Damage Taken 1242 | . 537 705 Core 290 | . 96 194 Absorbed by Shields . | . . . Regen/Repaired (Parts) 61 | . 61 . Core Remaining (%) 100 | 100 . . Volleys Fired 105 | 13 52 40 Largest 2 | 2 2 2 Hottest 160 | 40 100 160 Shots Fired 179 | 26 94 59 Gun 122 | 26 90 6 Cannon 39 | . . 39 Launcher 14 | . . 14 Special 4 | . 4 . Kinetic 85 | 26 44 15 Thermal 46 | . 4 42 Explosive . | . . . Electromagnetic 48 | . 46 2 Robot Hit Streak 8 | 4 6 8 Robot Miss Streak 4 | 2 4 3 Penetration Max . | . . . Secondary Targets 1 | . 1 . Max Gunslinging Chain 1 | . 1 . Shots Hit Robots 103 | 16 55 32 Core Hits 51 | 6 26 19 Critical Kills 2 | 1 . 1 Critical Parts Destroyed . | . . . Critical Strikes 3 | 1 1 1 Meltdown 1 | . . 1 Destroy 1 | 1 . . Corrupt 1 | . 1 . Melee Attacks 29 | . . 29 Impact 5 | . . 5 Slashing 24 | . . 24 Piercing . | . . . Sneak Attacks . | . . . Combat Hostiles . | . . . Follow-up Attacks . | . . . Damage Inflicted 2479 | 154 1420 905 Guns 976 | 154 720 102 Cannons 661 | . . 661 Explosions 839 | . 697 142 Melee . | . . . Ramming 3 | . 3 . Kinetic 665 | 154 355 156 Thermal 1279 | . 552 727 Explosive 145 | . 145 . Electromagnetic 387 | . 365 22 Impact . | . . . Slashing . | . . . Piercing . | . . . Highest Corruption . | . . . Average Corruption . | . . . Corruption Purged . | . . . Corruption Blocked . | . . . Overload Shots . | . . . Overflow Damage 118 | . 118 . Projectiles . | . . . Explosions 118 | . 118 . Melee . | . . . Knockbacks . | . . . Impact . | . . . Kinetic . | . . . Secondary . | . . . Self-Inflicted Damage 46 | . 46 . Shots 1 | . 1 . Rammed 3 | . 3 . Targets Rammed 3 | . 3 . Kicked . | . . . Crushed . | . . . Highest Temperature 165 | . 156 165 Average Temperature 57 | . 49 70 Received Heat Transfer 402 | . 231 171 Siege Activations . | . . . Robots Corrupted . | . . . Combat Hostiles . | . . . Parts Fried 1 | . 1 . Impact Corruptions . | . . . Robots Melted 1 | . . 1 Combat Hostiles 1 | . . 1 Parts Melted 4 | . 2 2 Heat Transferred 1463 | . 500 963 Parts Sabotaged . | . . . Parts Stolen . | . . . Parts Stripped . | . . . Power Chain Reactions 3 | . 3 . Alert | -11 -10 -10 ------- Run | Yrd Mat Sub Peak Influence 361 | 20 361 . Initial 13 | . 13 . Average 128 | 12 139 . Maximum Alert Level 1 | . 1 . Low Security (%) 83 | 100 82 . Level 1 16 | . 17 . Level 2 . | . . . Level 3 . | . . . Level 4 . | . . . Level 5 . | . . . High Security . | . . . Max Security . | . . . Squads Dispatched 3 | . 3 . Investigation 2 | . 2 . Extermination . | . . . Reinforcement 1 | . 1 . Assault . | . . . Garrison . | . . . Intercept . | . . . Searches Triggered . | . . . Construction Impeded . | . . . Haulers Reinforced . | . . . Active Scanning Responses . | . . . Cargo Convoy Interrupts . | . . . Stealth | -11 -10 -10 --------- Run | Yrd Mat Sub Distress Signals 1 | . 1 . Communications Jammed . | . . . Distress Signals . | . . . Times Spotted 34 | . 23 11 Peak Tracking Total 4 | . 4 3 Tactical Retreats 6 | . 2 4 Traps | -11 -10 -10 ------- Run | Yrd Mat Sub Traps Triggered . | . . . Indirectly . | . . . Trap Hack Attempts . | . . . Triggered . | . . . Disarmed . | . . . Reprogrammed . | . . . Reused . | . . . Traps Extracted . | . . . Installed . | . . . Triggered 1 | . . 1 Most Traps Carried 1 | . . 1 Machines | -11 -10 -10 ---------- Run | Yrd Mat Sub Machines Disabled 9 | . 6 3 Max in Single Turn 3 | . 3 2 Machines Repaired . | . . . Machines Dismantled . | . . . Machines Sabotaged . | . . . Overloaded Fab Kills . | . . . Hacking | -11 -10 -10 --------- Run | Yrd Mat Sub Machines Accessed 9 | . 9 . Terminals 6 | . 6 . Fabricators . | . . . Repair Stations 1 | . 1 . Recycling Units 2 | . 2 . Scanalyzers . | . . . Garrison Access . | . . . Total Hacks 35 | . 35 . Successful 19 | . 19 . Failed 16 | . 16 . Catastrophic 2 | . 2 . Database Lockouts . | . . . Manual 19 | . 19 . Terminals 29 | . 29 . Fabricators . | . . . Repair Stations 2 | . 2 . Recycling Units 4 | . 4 . Scanalyzers . | . . . Garrison Access . | . . . Terminal Hacks 9 | . 9 . Robot Analysis 1 | . 1 . Prototype ID Bank 1 | . 1 . Terminal Index 1 | . 1 . Unreport Threat 1 | . 1 . Locate Traps 2 | . 2 . Security Status 1 | . 1 . Surveillance Status 1 | . 1 . Zone Layout 1 | . 1 . Fabricator Hacks . | . . . Repair Station Hacks 2 | . 2 . Scan Component 1 | . 1 . Repair 1 | . 1 . Recycling Unit Hacks 1 | . 1 . Retrieve Components 1 | . 1 . Scanalyzer . | . . . Garrison Access Hacks . | . . . Unauthorized Hacks 7 | . 7 . Terminals 5 | . 5 . Skim 5 | . 5 . Fabricators . | . . . Repair Stations . | . . . Recycling Units 2 | . 2 . Tunnel 2 | . 2 . Scanalyzers . | . . . Garrison Access . | . . . Data Cores Recovered 1 | . 1 . Used . | . . . Hacking Detections 7 | . 7 . Full Trace Events . | . . . Feedback Events . | . . . Feedback Blocked . | . . . Robot Schematics Acquired . | . . . Robots Built . | . . . Authchips . | . . . Time . | . . . Total Robot Build Rating . | . . . Part Schematics Acquired . | . . . Parts Built . | . . . Authchips . | . . . Time . | . . . Total Part Build Rating . | . . . Parts Repaired 1 | . 1 . Time 26 | . 26 . Parts Recycled . | . . . Recycled Matter . | . . . Retrieved Matter . | . . . Retrieved Components 2 | . 2 . Parts Scanalyzed . | . . . Part Schematics Acquired . | . . . Parts Damaged . | . . . Bothacking | -11 -10 -10 ------------ Run | Yrd Mat Sub Used RIF Installer . | . . . Robots Hacked . | . . . Non-combat . | . . . Combat . | . . . Robot Hacks Applied . | . . . Relay Couplers Released . | . . . Fabnet Peak Effective % . | . . . Robots Rewired . | . . . Allies Hacked . | . . . Hacks Repelled . | . . . Allies | -11 -10 -10 -------- Run | Yrd Mat Sub Total Allies . | . . . Largest Group . | . . . Highest-Rated Group . | . . . Highest-Rated Ally . | . . . Total Orders . | . . . Ally Attacks . | . . . Total Damage . | . . . Kills . | . . . Allies Corrupted . | . . . Allies Melted . | . . . Intel | -11 -10 -10 ------- Run | Yrd Mat Sub Robot Analysis Total 1 | . 1 . Derelict Logs Recovered 2 | . . 2 Drone Launches . | . . . Drone Recoveries . | . . . Exploration | -11 -10 -10 ------------- Run | Yrd Mat Sub Turns Passed 5333 | 116 1242 3975 Spaces Moved 1596 | 50 424 1122 Core . | . . . Treads 1435 | 28 424 983 Legs 22 | 22 . . Wheels 139 | . . 139 Hover . | . . . Flight . | . . . Fastest Speed 120 | 120 160 150 Average Speed 279 | 142 235 302 Slowest Speed 560 | 160 320 560 Overloaded Moves . | . . . Propulsion Burnouts . | . . . Robots Hopped . | . . . Cave-ins Triggered . | . . . Exploration Rate (%) 54 | 3 84 77 Regions Visited 2 Branch Regions 1 Pre-discovered Areas 3 | . 2 1 Known Exits Taken . | . . . Unknown Exits Taken 2 | 1 1 . Scrap Searched 6 | . . 6 Spaces Dug 14 | . 2 12 Terrain Destroyed 84 | . 24 60 Melee 12 | . . 12 Projectile 9 | . 4 5 AOE 63 | . 20 43 Terrain Rammed . | . . . Walls Destroyed . | . . . Machines Disabled . | . . . Actions | -11 -10 -10 --------- Run | Yrd Mat Sub Total 2240 | 73 563 1604 Wait 393 | . 51 342 Move 1594 | 49 423 1122 Hop . | . . . Pick Up 39 | 3 15 21 Fast Attach 5 | 1 3 1 Attach 5 | . 1 4 Detach 1 | . 1 . Swap 37 | 2 7 28 Drop 29 | 5 7 17 Fire 105 | 13 52 40 Melee 29 | . . 29 Ram . | . . . Kick . | . . . Crush 3 | . 3 . Escape Stasis . | . . . Rewire . | . . . Trap . | . . . Miscellaneous . | . . . Route ------- -11/Scrapyard -10/Materials (discovered 4 exits: [*Mat x2] / [*Min] / [*Sub]) -10/Subcaves (discovered 2 exits: [*Mat] / [*Rec]) History --------- Turn | Location | Event 1 | -11/Scrapyard | Discovered new exit (range 2) 117 | -11/Scrapyard | Entered Materials 323 | -10/Materials | Build established: Mutant 545 | -10/Materials | Repaired Lgt. Treads 566 | -10/Materials | Discovered new exit (range 15) 625 | -10/Materials | Discovered new exit (range 6) 1030 | -10/Materials | Discovered new exit (range 14) 1336 | -10/Materials | Discovered new exit (range 7) 1359 | -10/Materials | Entered Subcaves 1726 | -10/Subcaves | A Subdweller sparked back to life 1726 | -10/Subcaves | A Subdweller sparked back to life 1798 | -10/Subcaves | Core integrity fell below 50% 1843 | -10/Subcaves | Found Prototype Leg 2038 | -10/Subcaves | A swath of the cavern ceiling suddenly collapsed 2772 | -10/Subcaves | Shifting Twisted Machinery released Mak. Sword 4427 | -10/Subcaves | Core integrity fell below 20% 4818 | -10/Subcaves | Discovered new exit (range 15) 5025 | -10/Subcaves | Discovered new exit (range 15) 5309 | -10/Subcaves | Learned location of Zion (-7) 5333 | -10/Subcaves | Ambushed by Subdweller buried in earth 5334 | -10/Subcaves | Ambushed by Subdweller buried in earth 5334 | -10/Subcaves | Destroyed by A7-86G(R) with Subdweller Shrapnel Launcher Last Messages --------------- Sink, destroying it. 04932_ Dropped Heat Sink. 04945_ D8-043(R): "SUBHATE!" 04946_ Sub. Beam Cannon shoots sparks and powers down. 04951_ D8-043(R) destroyed. 04963_ Acquired Scrap Shield. 05001_ Acquired 54 matter. 05008_ Acquired derelict log, extracted data. Data stored: Storage entrances (x1). 05025_ EXIT=FOUND 05072_ Acquired 14 matter. 05151_ Dropped Broken Sub. Beam Cannon. 05152_ Acquired Scrap Shield Fragment. 05198_ Dropped Beam Cannon. 05206_ Acquired Sub. Beam Cannon. 05231_ Acquired 1 matter. 05309_ Acquired derelict log, extracted data. World map updated: -7/Zion. 05334_ A7-86G(R): "NOSTUCKSUB!" Map ----- +----------------------------------------------------+ | ????????????????????????????????????????""## ##? | | ????????????????????????????????????????$$"# # | | ????????????????????????????????????#???$$"? ## | | ????????????????????????????????????# ??""## ## | | ????????????????????????????????????# ## # ## | | ?????????????????????????????????##### # | | ???????????????????????????????### # #### ## | | ???????????????????????????????# ## | | ??????????????????????????###### ######## ##? | | ??????????????????????????# # ##????#"# ##### | | ?????????????????????????## #?????# ## # # | | ??????????????????????#### ## ###?????## | | ??????????????????????# ## #####????????#### | | ??????????????????????# #??????????????###### | | ?????????????????????## #####???????????????????? | | ?????????????????????# #???????????????????????? | | ?????????????????????## #???????????????????????? | | ?????????????????????# #???????????????????????? | | ?????????????????????# ##???????????????????????? | | ?????????????????????# #???????????????????????? | | ?????????????????????# #???????????????????????? | | ?????????????????????## ##???????????????????????? | | ?????????????????????## ##???????????????????????? | | ?????????????????????# #;??????????????????????? | | ?????????????????????####R;??????????????????????? | | ????????????????????????#@ ??????????????????????? | | ???????????????????????#R##??????????????????????? | | ???????????????????????##????????????????????????? | | ?????????????????????????????????????????????????? | | ?????????????????????????????????????????????????? | | ?????????????????????????????????????????????????? | | ?????????????????????????????????????????????????? | | ?????????????????????????????????????????????????? | | ?????????????????????????????????????????????????? | | ?????????????????????????????????????????????????? | | ?????????????????????????????????????????????????? | | ?????????????????????????????????????????????????? | | ?????????????????????????????????????????????????? | | ?????????????????????????????????????????????????? | | ?????????????????????????????????????????????????? | | ?????????????????????????????????????????????????? | | ?????????????????????????????????????????????????? | | ?????????????????????????????????????????????????? | | ?????????????????????????????????????????????????? | | ?????????????????????????????????????????????????? | | ?????????????????????????????????????????????????? | | ?????????????????????????????????????????????????? | | ?????????????????????????????????????????????????? | | ?????????????????????????????????????????????????? | | ?????????????????????????????????????????????????? | +----------------------------------------------------+ Best States ------------- Heat Dissipation 25 Energy Generation 10 Energy Capacity 250 Matter Stores 300 Matter Capacity 300 Sight Range 16 Terrain Scan Density 10 Armor Coverage 150 Evasion (%) 55 Recoil Reduction 2 Item Schematics ----------------- None Robot Schematics ------------------ None Fabricated ------------ Nothing Alien Tech Used ----------------- None Achievements -------------- None Challenges ------------ None Game ------ Seed MatterZioniteScanner Manual? 0 Play Time 00:26:57 Cumulative 411.1 hours Start 2024.09.20 @ 08:41:23 End 2024.09.20 @ 09:06:18 Sessions 1 Manual Loads 0 Difficulty Rogue Special Mode None Game No. 149 Rogue 147 Adventurer 2 Explorer 0 Win Type - Total 22 Types 10/0/8/1/0/0/2/1/0 Lore% 77 Gallery% 86 Achievement% 77 Wizard Run 0 Options --------- Layout 1 ASCII 0 Keyboard 1 Movement Numpad Keybinds 0 Fullscreen 1 Font 24/Smallcaps Map View 50x35 Zoom Use 0% Tactical HUD 1 Map Filters NONE Filters NONE Steam 1 RUN: 6d9bc8db-08f7-4ebd-af66-f22cb1293990